bitfinex/quotes_ETHUSD_20250114
["timestamp","ask_amount","ask_price","bid_price","bid_amount"]
[1736818357600,0.8252,3155.6,3154.8,0.38251304]
[1736818357805,0.8252,3155.6,3155.2,3.16936]
[1736818357964,3.16786,3156.8,3154.8,3.55222304]
[1736818357965,0.8252,3155.9,3155.5,3.16897]
[1736818358168,0.8252,3155.9,3155.3,3.2009426]
[1736818358364,6.87623604,3155.9,3154.8,11.99973]
[1736818358606,0.8252,3155.7,3154.8,11.99973]
[1736818358985,0.8252,3155.7,3155.0,3.16956]
[1736818359192,0.8252,3155.7,3154.8,11.99974]
[1736818359506,0.8252,3155.7,3155.0,3.16955]
[1736818359902,0.8252,3155.7,3154.8,11.99973]
[1736818360108,0.45128236,3155.6,3154.8,11.99973]
[1736818360293,0.8252,3155.5,3154.7,0.64932136]
[1736818360480,0.7838,3155.3,3154.3,3.80623047]
[1736818361529,0.7838,3155.1,3154.3,3.80623047]
[1736818362829,0.7838,3155.1,3154.3,3.17018]
[1736818365695,0.7838,3155.1,3154.2,0.62675221]
[1736818365877,0.695318,3155.0,3154.1,3.17046]
[1736818366081,0.695318,3155.0,3153.9,0.03169985]
[1736818366328,0.7838,3155.1,3154.2,0.015]
[1736818366488,0.7838,3155.1,3154.6,3.16988]
[1736818366681,0.7838,3155.1,3154.7,0.03169532]
[1736818366943,0.7838,3155.1,3154.7,3.20156532]
[1736818367333,0.7838,3155.1,3154.5,3.17005]
[1736818367983,0.7838,3155.1,3154.4,0.03169532]
[1736818368189,0.7838,3155.1,3154.6,3.16996]
[1736818374383,0.7838,3155.1,3154.7,3.16984]
[1736818375397,0.7838,3155.1,3154.2,3.17035]
[1736818375600,0.7838,3155.1,3154.3,3.17027]
[1736818375814,0.7838,3155.1,3154.3,4.42268351]
[1736818376385,0.7838,3155.1,3154.3,1.28411207]
[1736818376589,0.7838,3155.1,3154.4,3.17014]
[1736818378389,0.7838,3155.1,3154.3,1.25241351]
[1736818378590,0.7838,3155.1,3154.3,0.63146665]
[1736818378792,3.16958,3155.0,3153.9,3.17058]
[1736818378955,3.16958,3155.0,3153.8,3.85896341]
[1736818378956,0.7838,3154.9,3153.8,3.04446341]
[1736818379295,0.7838,3154.9,3154.0,3.17047]
[1736818379705,0.7838,3154.9,3154.3,3.17025]
[1736818379865,0.7838,3154.9,3154.1,0.03170169]
[1736818379866,0.7838,3154.9,3154.1,3.17044]
[1736818380388,0.7838,3154.9,3154.0,0.62654978]
[1736818380562,3.16978,3154.8,3154.0,0.62654978]
[1736818380787,3.16978,3154.8,3153.8,3.04446341]
[1736818380788,0.8279,3154.6,3153.8,3.04446341]
[1736818381270,0.8279,3154.6,3153.7,3.17085]
[1736818381941,3.9979,3154.6,3153.5,5.98557]
[1736818382166,0.316978,3154.7,3153.3,0.0075]
[1736818382167,0.8279,3154.2,3153.3,3.17124]
[1736818382369,0.8279,3154.0,3153.2,3.17137]
[1736818382671,0.8279,3154.0,3153.2,3.2030793]
[1736818382891,0.8279,3154.0,3153.3,3.17126]
[1736818383566,0.8279,3154.0,3153.4,0.62820077]
[1736818383772,0.8279,3154.0,3153.2,3.17134]
[1736818383990,0.8279,3154.0,3152.6,47.8295]
[1736818384331,0.8279,3153.9,3153.0,3.17157]
[1736818384627,0.8279,3153.1,3152.3,3.1722]
[1736818384777,0.8279,3153.1,3152.3,3.17225]
[1736818385113,3.06202038,3153.8,3152.3,3.17225]
[1736818385114,3.06202038,3154.2,3152.7,0.64343605]
[1736818385288,0.8279,3154.1,3153.3,3.17126]
[1736818385602,0.8279,3154.1,3153.0,3.20321073]
[1736818385809,3.0,3154.0,3153.0,3.1715]
[1736818386010,0.8279,3153.9,3153.0,3.1715]
[1736818386187,0.8279,3153.7,3153.0,3.1715]
[1736818386717,0.8279,3153.7,3153.3,3.17124]
[1736818389981,3.06202038,3154.8,3153.4,0.03171043]
[1736818390181,0.8279,3154.6,3153.7,3.17083]
[1736818390386,0.8279,3154.1,3153.0,8.83]
[1736818390584,0.8279,3154.0,3153.0,0.648581]
[1736818391030,0.8279,3153.8,3152.5,0.3173]
[1736818391234,0.8279,3153.8,3152.4,16.100183]
[1736818391386,0.8279,3153.8,3152.9,3.17165]
[1736818392118,0.8279,3153.8,3152.6,0.015]
[1736818392317,0.8279,3153.8,3153.0,3.17156]
[1736818393033,0.8279,3153.8,3153.0,3.17155]
[1736818393253,0.8279,3153.8,3152.8,3.17178]
[1736818393420,1.21689204,3153.8,3152.8,3.489708]
[1736818393756,0.7671,3153.7,3152.9,3.17165]
[1736818393952,0.7671,3153.7,3152.8,0.317928]
[1736818393953,0.7671,3153.7,3153.0,3.17158]
[1736818394750,0.7671,3153.7,3152.8,0.94610014]
[1736818395056,0.7671,3153.7,3152.7,3.17179]
[1736818395554,0.7671,3153.5,3152.5,3.80291008]
[1736818396154,0.7671,3153.4,3152.5,3.17207]
[1736818397525,0.7671,3153.2,3152.3,0.64792758]
[1736818397859,0.7671,3153.1,3152.3,3.82010758]
[1736818398212,0.7671,3153.1,3152.3,3.17218]
[1736818398561,0.7671,3153.1,3152.1,3.17245]
[1736818399054,0.7671,3153.1,3152.2,3.17238]
[1736818399605,0.7671,3153.1,3152.0,0.64918066]
[1736818399606,3.0,3152.9,3152.0,3.82176066]
[1736818399862,0.7671,3152.8,3152.0,3.17258]
[1736818400925,0.7671,3152.8,3152.0,0.015]
[1736818401262,0.7671,3152.8,3152.4,3.17216]
[1736818401975,0.7671,3152.8,3152.1,0.0317195]
[1736818401976,0.7671,3152.8,3152.5,3.17204]
[1736818402266,0.7671,3152.8,3152.6,3.489114]
[1736818402760,0.7671,3152.8,3152.3,0.03171818]
[1736818402942,0.7671,3152.8,3152.3,3.17219]
[1736818403146,0.7671,3152.8,3152.1,3.17247]
[1736818406822,0.7671,3152.8,3152.2,0.03172241]
[1736818407041,0.7671,3152.8,3152.2,3.17237]
[1736818407239,0.7671,3152.8,3152.2,3.566457]
[1736818407649,0.7671,3152.8,3151.9,3.80899926]
[1736818408051,0.7671,3152.8,3152.0,3.17255]
[1736818408291,0.7671,3152.8,3152.0,0.0317224]
[1736818408475,0.64790987,3154.0,3152.7,3.17188]
[1736818408653,0.7835,3153.9,3152.9,3.17166]
[1736818408866,0.7835,3153.7,3152.9,3.17166]
[1736818409053,0.7835,3153.7,3152.3,0.0075]
[1736818409254,0.7835,3153.6,3152.4,0.0075]
[1736818409456,3.06202038,3153.4,3152.2,8.83]
[1736818409672,0.7835,3153.3,3152.4,3.17215]
[1736818409871,0.7835,3153.2,3151.9,4.59860926]
[1736818410075,0.7835,3153.1,3152.2,3.17229]
[1736818410290,0.7835,3153.8,3152.6,0.015]
[1736818410592,0.7835,3153.8,3153.1,3.17146]
[1736818410890,3.06202038,3154.3,3153.0,3.0075]
[1736818411188,0.7835,3154.1,3153.3,3.17119]
[1736818411390,0.7835,3154.1,3153.1,3.17146]
[1736818411555,3.84552038,3154.0,3153.1,3.17146]
[1736818411742,3.0,3153.9,3153.1,3.17146]
[1736818411943,3.0,3153.9,3152.7,0.0075]
[1736818411944,0.7835,3153.8,3152.9,3.7998371]
[1736818412196,1.16185,3153.7,3152.9,3.7998371]
[1736818412633,0.7835,3153.6,3152.9,3.7998371]
[1736818412835,0.7835,3153.6,3153.0,3.17157]
[1736818414243,0.7835,3153.6,3152.6,0.03171492]
[1736818414407,0.7835,3153.6,3152.9,3.17168]
[1736818416326,0.7835,3153.6,3152.7,3.79398525]
[1736818416734,0.42238704,3153.5,3152.7,3.79398525]
[1736818416896,0.7835,3153.4,3152.7,3.79398525]
[1736818418943,3.06202038,3153.4,3152.5,3.17208]
[1736818419147,0.7835,3153.3,3152.5,3.17208]
[1736818419347,0.7835,3153.3,3152.4,0.63013985]
[1736818419348,0.7835,3153.1,3152.4,0.63013985]
[1736818419713,0.7835,3153.1,3152.1,3.17246]
[1736818420117,0.7835,3153.0,3152.1,3.17246]
[1736818420530,3.95508,3153.0,3151.8,3.20442212]
[1736818420732,0.7835,3152.7,3151.7,2.0]
[1736818420933,0.7835,3152.7,3152.0,3.17254]
[1736818422205,0.7835,3152.7,3151.8,0.27896]
[1736818422443,0.7835,3152.7,3151.7,0.63267931]
[1736818423011,3.7835,3152.7,3151.7,0.63267931]
[1736818423216,0.7835,3152.6,3151.6,3.17291]
[1736818423456,0.7835,3152.5,3151.4,0.3178]
[1736818423604,0.7835,3152.5,3151.5,3.17305]
[1736818423806,0.7835,3152.4,3151.5,3.17305]
[1736818424639,0.7835,3152.4,3151.4,0.64507108]
[1736818424940,0.7835,3152.2,3151.4,0.64507108]
[1736818425339,0.7835,3152.2,3151.3,3.17327]
[1736818426024,0.7835,3152.2,3151.4,3.17319]
[1736818426825,0.7835,3152.2,3151.3,0.63719119]
[1736818427011,0.7835,3152.2,3151.5,3.17306]
[1736818427645,0.7835,3152.2,3151.6,0.03172974]
[1736818427850,0.7835,3152.2,3151.8,3.17269]
[1736818428070,0.7835,3152.2,3151.6,3.20462974]
[1736818428238,0.7835,3152.2,3152.0,3.17248]
[1736818428436,0.7835,3152.2,3152.1,0.317248]
[1736818428650,0.7835,3153.0,3152.1,0.34897267]
[1736818428889,0.7835,3153.0,3152.3,3.17219]
[1736818429638,0.7835,3153.0,3152.0,1.4533645]
[1736818429852,0.7835,3153.0,3152.2,0.0075]
[1736818430051,0.7835,3153.0,3152.7,3.17187]
[1736818430254,0.7835,3153.0,3152.8,0.317187]
[1736818430462,0.7835,3153.0,3152.5,3.17205]
[1736818430668,0.7835,3153.0,3152.0,3.80461384]
[1736818431182,0.7835,3153.0,3152.1,3.17241]
[1736818431352,0.7835,3153.0,3151.8,0.03172366]
[1736818431535,0.7835,3153.0,3152.0,3.17258]
[1736818431736,0.7835,3153.0,3151.9,1.26848848]
[1736818431737,0.7835,3153.0,3152.2,3.17237]
[1736818432483,0.7835,3153.0,3152.0,3.17255]
[1736818432679,0.7835,3153.0,3152.1,3.17248]
[1736818433588,0.7835,3153.0,3152.2,3.17238]
[1736818434584,0.7835,3152.9,3152.2,3.17238]
[1736818435293,0.7835,3152.9,3152.0,3.17258]
[1736818435500,0.7835,3152.8,3151.4,3.50591]
[1736818435798,0.7835,3152.7,3151.8,3.17274]
[1736818435997,0.7835,3152.7,3151.5,3.173]
[1736818436293,0.7835,3152.5,3151.6,3.17296]
[1736818436663,0.7835,3152.4,3151.6,3.17296]
[1736818437594,0.7835,3152.4,3151.4,0.64212545]
[1736818437783,0.7835,3152.4,3151.5,3.17305]
[1736818439382,0.7835,3152.4,3151.6,3.17298]
[1736818440118,0.7835,3152.4,3151.8,3.17271]
[1736818440334,0.7835,3152.4,3151.7,0.03172511]
[1736818440473,0.7722,3153.3,3151.9,0.03172449]
[1736818440815,0.7722,3153.0,3152.0,3.17256]
[1736818440974,0.7722,3152.9,3152.0,3.17256]
[1736818442015,0.7722,3152.9,3151.7,0.0075]
[1736818442231,0.7722,3152.9,3152.1,3.17244]
[1736818443526,0.7722,3152.9,3152.2,3.17234]
[1736818445121,0.7722,3152.9,3152.1,3.81453588]
[1736818445656,0.7722,3152.9,3152.1,3.17246]
[1736818445822,0.7722,3152.6,3151.4,0.3178]
[1736818446025,0.7722,3152.4,3151.5,3.17299]
[1736818446224,0.7722,3152.4,3151.6,3.80221818]
[1736818446557,0.7722,3152.4,3151.4,3.17316]
[1736818446754,0.7722,3152.1,3151.2,3.17336]
[1736818446961,0.7722,3152.1,3151.3,3.17328]
[1736818452894,0.7722,3152.1,3151.1,0.64156746]
[1736818453063,0.7722,3152.1,3151.3,3.1732]
[1736818453665,0.7722,3152.1,3151.1,0.64156746]
[1736818453850,0.7536,3152.0,3151.1,3.81503746]
[1736818454049,0.37536,3151.9,3151.1,3.81503746]
[1736818454250,0.7536,3151.8,3151.1,3.81503746]
[1736818454987,0.7536,3151.8,3150.9,3.17361]
[1736818455653,0.7536,3151.8,3151.0,3.17358]
[1736818456484,0.7536,3151.8,3150.7,3.75151935]
[1736818456664,0.7536,3151.8,3151.0,3.80797515]
[1736818458466,0.7536,3151.8,3151.0,0.63441515]
[1736818458667,0.7536,3151.8,3150.8,3.17377]
[1736818459201,0.7536,3151.8,3150.9,0.63892807]
[1736818459986,3.7536,3151.7,3150.9,0.63892807]
[1736818460190,0.7536,3151.5,3150.9,0.63892807]
[1736818461013,0.7536,3151.5,3150.6,3.17397]
[1736818462202,0.7536,3151.5,3150.7,3.17388]
[1736818463424,0.7978,3151.4,3150.5,3.80523348]
[1736818463606,0.7978,3151.4,3150.5,0.63117348]
[1736818463607,0.7978,3151.2,3150.5,0.63117348]
[1736818464119,0.7978,3151.2,3150.5,3.80526348]
[1736818465217,0.7978,3151.2,3150.5,0.63117348]
[1736818465434,0.7978,3151.2,3150.3,3.17429]
[1736818465782,0.7978,3151.2,3150.4,0.62719718]
[1736818466099,0.7978,3151.1,3150.4,0.62719718]
[1736818467224,0.7978,3151.1,3150.1,3.17447]
[1736818468631,0.8265,3150.9,3150.1,3.17447]
[1736818468787,0.8265,3150.9,3150.2,0.63276088]
[1736818469626,0.8265,3150.9,3150.2,3.80715088]
[1736818469825,0.8265,3150.9,3150.2,4.18786597]
[1736818470324,0.8265,3150.9,3150.2,1.01347597]
[1736818470492,0.8265,3150.9,3150.2,0.63276088]
[1736818471299,6.17373,3150.9,3150.2,0.63276088]
[1736818471500,0.8265,3150.6,3149.8,3.17474]
[1736818472125,0.8265,3150.5,3149.7,0.63021763]
[1736818472341,0.8265,3150.5,3149.6,3.3381909]
[1736818472509,0.8265,3150.5,3149.6,3.67200999]
[1736818473323,0.8265,3150.5,3149.6,0.7948709]
[1736818473522,0.8265,3150.5,3149.8,3.1748]
[1736818473730,0.8265,3150.5,3150.2,3.1743]
[1736818474515,0.8265,3152.1,3150.7,0.0075]
[1736818474710,0.8265,3152.1,3150.9,3.86782038]
[1736818474952,0.8265,3152.1,3151.2,3.17329]
[1736818475111,0.8265,3152.1,3151.1,0.64318821]
[1736818475112,0.8265,3151.7,3151.1,0.64318821]
[1736818475561,0.8265,3151.7,3150.6,3.17395]
[1736818475859,0.8265,3151.3,3150.3,3.17423]
[1736818476091,0.8265,3151.1,3150.2,0.63101689]
[1736818476234,0.8265,3151.1,3150.2,3.80539689]
[1736818476637,0.8265,3151.0,3150.0,3.17458]
[1736818477063,0.8265,3150.7,3149.8,3.17479]
[1736818477270,0.8265,3150.7,3149.6,0.1631909]
[1736818477447,1.20915,3150.6,3149.6,0.19493729]
[1736818477754,1.20915,3150.6,3149.8,3.17477]
[1736818478967,0.8265,3150.6,3149.8,3.17477]
[1736818479549,0.8265,3150.6,3149.6,0.8047597]
[1736818479738,0.8265,3150.6,3149.6,0.1631909]
[1736818480069,0.8265,3150.6,3149.6,3.3381709]
[1736818480367,0.8265,3150.5,3149.6,3.3381709]
[1736818480574,0.8265,3150.3,3149.6,3.3381709]
[1736818484986,0.8265,3150.1,3149.6,0.1631909]
[1736818485149,3.17454,3150.1,3149.6,0.1631909]
[1736818485348,0.8265,3150.0,3149.6,0.1631909]
[1736818485750,0.8265,3149.9,3149.6,0.1631909]
[1736818485988,0.8265,3149.7,3149.6,0.1631909]
[1736818489785,0.8265,3150.2,3149.6,0.1631909]
[1736818490162,0.8265,3150.2,3149.8,3.17477]
[1736818490748,0.8265,3150.7,3150.3,3.1743]
[1736818491092,3.17321,3151.4,3150.4,0.31743]
[1736818491093,0.8265,3151.3,3150.4,0.31743]
[1736818491297,0.8265,3151.3,3150.6,3.1739]
[1736818491590,0.8265,3151.3,3150.7,3.17381]
[1736818491752,0.8265,3151.3,3150.3,3.1743]
[1736818491952,0.8265,3151.3,3150.4,3.17418]
[1736818492389,0.8265,3151.3,3150.2,3.80025252]
[1736818492590,0.8265,3151.3,3150.3,0.38002525]
[1736818492795,0.8265,3151.7,3150.3,0.38002525]
[1736818492956,0.8265,3151.7,3150.8,3.17375]
[1736818493153,0.8265,3151.7,3150.8,3.20548431]
[1736818493779,0.8265,3151.7,3150.8,0.03173431]
[1736818493984,0.8265,3151.7,3151.0,3.17357]
[1736818495375,0.8265,3151.7,3150.7,3.1963]
[1736818495581,0.8265,3151.7,3150.8,3.49341]
[1736818496168,0.8265,3151.7,3150.8,0.31963]
[1736818496376,0.8265,3151.7,3150.9,3.2053816]
[1736818496575,0.8265,3151.7,3150.9,3.17365]
[1736818497177,0.8265,3151.7,3150.8,0.31963]
[1736818497378,0.8265,3151.7,3150.9,0.65148153]
[1736818497801,0.8265,3151.7,3150.9,3.82517153]
[1736818497965,0.8265,3151.7,3151.0,0.41448015]
[1736818500310,0.8265,3151.7,3150.9,0.65148153]
[1736818501320,0.8265,3151.7,3150.8,0.31963]
[1736818501526,0.8265,3151.7,3150.8,0.3513629]
[1736818501677,0.8265,3151.7,3150.8,3.5251429]
[1736818502028,0.8265,3151.7,3150.8,3.49341]
[1736818503119,0.8265,3151.7,3150.9,0.38107389]
[1736818504315,0.8265,3151.7,3151.1,3.17348]
[1736818504618,0.8265,3151.7,3151.2,0.03173046]
[1736818504992,0.8265,3151.7,3151.1,3.17348]
[1736818506134,0.8265,3151.7,3150.9,0.349341]
[1736818506294,0.8265,3151.7,3151.0,0.03173291]
[1736818506631,0.8265,3151.7,3151.2,3.17339]
[1736818506840,0.8265,3151.7,3150.8,3.17378]
[1736818507544,3.8265,3151.7,3150.7,1.38116842]
[1736818507712,0.8201,3151.3,3150.5,8.83]
[1736818507909,3.99348,3151.3,3150.5,8.83]
[1736818508112,0.8201,3151.1,3150.0,2.7577]
[1736818508313,0.8201,3151.1,3150.1,0.03173883]
[1736818508720,3.99362,3151.1,3150.1,0.03173883]
[1736818508895,0.8201,3151.0,3149.9,3.1746]
[1736818509099,1.219462,3151.0,3149.9,3.49206]
[1736818509446,0.8201,3150.6,3149.9,0.62537544]
[1736818509734,3.99411,3150.6,3149.6,0.1631909]
[1736818509897,0.8201,3150.5,3149.6,0.1631909]
[1736818510302,3.99422,3150.5,3149.6,0.1631909]
[1736818510620,0.8201,3150.4,3149.6,0.1631909]
[1736818511334,3.1745,3150.1,3149.6,0.1631909]
[1736818511538,0.8201,3150.0,3149.6,0.1631909]
[1736818512038,3.99473,3150.0,3149.6,0.1631909]
[1736818514016,0.8201,3150.0,3149.6,0.1631909]
[1736818514231,0.8138,3150.0,3149.6,0.1631909]
[1736818514430,3.9885,3150.0,3149.6,0.1631909]
[1736818514639,0.8138,3149.8,3149.6,0.1631909]
[1736818515050,3.98865,3149.8,3149.6,0.1631909]
[1736818515241,0.8138,3149.8,3149.6,0.1631909]
[1736818515646,3.98866,3149.8,3149.6,0.1631909]
[1736818519354,0.8138,3149.8,3149.6,0.1631909]
[1736818525286,0.8138,3150.2,3149.6,0.1631909]
[1736818526297,3.32386,3150.8,3149.9,3.17469]
[1736818526298,0.8138,3150.8,3149.9,3.17469]
[1736818526590,0.8138,3150.8,3150.0,3.52380243]
[1736818526980,0.8138,3150.8,3150.0,0.317469]
[1736818528075,0.8138,3150.4,3149.6,0.1631909]
[1736818528459,0.8138,3150.4,3149.6,3.3381909]
[1736818528871,0.8138,3150.4,3149.8,3.1748]
[1736818529571,0.8138,3150.4,3150.0,0.6457953]
[1736818529803,3.07180608,3150.9,3150.0,1.02785483]
[1736818530206,6.24552608,3150.9,3150.0,1.02785483]
[1736818530410,3.17349,3151.1,3150.0,5.04206743]
[1736818531012,3.32332,3151.3,3150.3,3.17425]
[1736818531319,3.32332,3151.3,3150.4,0.317425]
[1736818531983,3.07180608,3151.2,3150.0,1.83575483]
[1736818532185,3.07180608,3151.2,3150.0,0.6457953]
[1736818532382,3.17348,3151.2,3150.2,3.17436]
[1736818532905,0.7797,3151.1,3150.3,0.07211912]
[1736818533205,0.7797,3151.1,3150.4,3.98209]
[1736818533706,0.7797,3151.1,3150.5,0.07211912]
[1736818534002,0.7797,3151.1,3150.6,0.40542091]
[1736818534403,0.7797,3151.1,3150.4,0.8079]
[1736818534572,0.7797,3151.1,3150.7,0.07211912]
[1736818534773,4.0,3152.4,3150.5,0.015]
[1736818534974,4.0,3152.4,3151.0,3.8079]
[1736818534975,0.7797,3152.0,3151.0,3.8079]
[1736818535194,0.7797,3152.0,3151.1,0.03172973]
[1736818535399,0.7797,3152.0,3151.1,3.27708975]
[1736818535605,0.7797,3152.0,3151.1,3.98558873]
[1736818536124,0.7797,3152.0,3151.1,0.07190972]
[1736818536125,7.02412608,3152.0,3151.1,0.07190972]
[1736818536324,3.17269,3151.9,3151.1,0.07190972]
[1736818537339,0.7797,3152.0,3151.1,3.2770621]
[1736818537486,0.7797,3152.0,3151.1,3.24532972]
[1736818540002,4.7797,3153.1,3151.7,0.8079]
[1736818540205,4.7797,3153.1,3151.8,3.17276]
[1736818540206,3.17177,3152.9,3151.8,3.17276]
[1736818540526,3.17177,3152.9,3151.8,3.24329127]
[1736818540925,3.17177,3152.9,3151.8,0.07053127]
[1736818541133,0.8271,3152.8,3151.8,0.07053127]
[1736818541338,3.99889,3152.8,3151.8,0.07053127]
[1736818541537,0.399889,3152.7,3151.8,0.07053127]
[1736818542336,3.571819,3152.7,3151.8,0.07053127]
[1736818543032,0.399889,3152.7,3151.8,0.07053127]
[1736818543338,0.8271,3152.6,3151.8,3.24331127]
[1736818543751,0.8271,3152.6,3151.8,0.07053127]
[1736818543951,0.8271,3153.3,3152.1,0.7737]
[1736818544161,0.8271,3153.3,3152.2,3.566988]
[1736818544512,0.8271,3153.3,3152.3,0.07053127]
[1736818544711,3.99838,3153.3,3152.3,0.07053127]
[1736818545110,0.8271,3153.3,3152.3,0.07053127]
[1736818545317,3.32087,3153.8,3152.4,3.7737]
[1736818545318,3.99791,3153.8,3152.4,3.7737]
[1736818545567,4.70488161,3153.8,3152.7,3.17187]
[1736818545917,4.70488161,3153.8,3152.8,0.07053127]
[1736818546753,3.07180608,3153.6,3152.8,0.07053127]
[1736818546913,3.17108,3153.5,3152.8,0.07053127]
[1736818547114,3.17108,3153.5,3152.4,0.7737]
[1736818547327,3.79548861,3153.4,3152.9,0.07053127]
[1736818547516,0.8271,3153.3,3152.4,0.7737]
[1736818547918,0.8271,3153.3,3152.5,0.0687092]
[1736818548866,3.07180608,3153.0,3152.5,0.0687092]
[1736818549077,6.24342608,3153.0,3152.5,0.0687092]
[1736818549360,0.8271,3152.8,3152.6,0.0687789]
[1736818549532,3.99892,3152.8,3152.6,0.0687789]
[1736818549733,3.99892,3152.8,3151.8,0.7737]
[1736818550142,3.99892,3152.8,3151.9,0.0687789]
[1736818550664,3.17189,3152.7,3151.9,0.0687789]
[1736818550963,3.571889,3152.6,3151.9,0.0687789]
[1736818551173,3.07180608,3152.3,3151.9,0.0687789]
[1736818551472,0.8271,3152.1,3151.9,0.0687789]
[1736818551617,0.8271,3152.1,3151.5,0.7737]
[1736818552352,0.8271,3152.1,3151.6,0.06795073]
[1736818552662,1.53423761,3152.1,3151.2,0.8054303]
[1736818552862,1.53423761,3152.1,3151.3,0.06795073]
[1736818557935,3.0,3152.5,3151.5,3.17304]
[1736818558131,0.8147,3152.4,3151.5,3.17304]
[1736818558435,0.8147,3152.4,3151.6,0.06795073]
[1736818559022,3.17229,3152.3,3151.2,0.7737]
[1736818559362,3.98721,3152.1,3151.3,0.06795073]
[1736818559651,0.398721,3152.0,3151.6,0.64093721]
[1736818559855,3.571391,3152.0,3150.9,4.00606]
[1736818560160,3.571391,3152.0,3151.0,0.06795073]
[1736818560362,0.398721,3152.0,3151.0,0.06795073]
[1736818560726,0.398721,3152.0,3151.1,0.41057443]
[1736818560926,3.1727,3151.9,3151.5,0.64970934]
[1736818561123,0.398721,3152.0,3151.5,0.64970934]
[1736818561569,0.398721,3152.0,3151.6,0.06888331]
[1736818562148,0.8147,3152.1,3151.6,0.06888331]
[1736818562354,3.9235,3152.5,3151.6,0.06888331]
[1736818562788,3.07180608,3152.3,3151.6,0.06888331]
[1736818562988,3.07180608,3152.0,3151.6,0.06888331]
[1736818563189,0.7514,3151.8,3151.6,0.06888331]
[1736818563400,0.7514,3151.8,3150.8,3.98662]
[1736818563768,3.07180608,3151.7,3150.9,0.06957196]
[1736818564003,3.173,3151.6,3150.9,0.06957196]
[1736818564202,0.7514,3151.4,3150.9,0.06957196]
[1736818564596,0.7514,3151.4,3150.5,3.8129]
[1736818564900,3.92469,3151.4,3150.5,1.511606]
[1736818565076,3.92469,3151.4,3150.6,0.06947605]
[1736818567020,0.7514,3151.4,3150.6,0.06947605]
[1736818568115,0.7514,3151.4,3150.6,3.24344605]
[1736818568891,0.7514,3151.4,3150.6,0.06947605]
[1736818570422,6.24532608,3151.1,3150.6,0.06947605]
[1736818570592,3.0,3151.3,3150.6,0.06947605]
[1736818570792,3.0,3151.3,3150.4,0.6459159]
[1736818570994,3.0,3151.3,3150.7,0.07015625]
[1736818571193,3.0,3151.3,3150.4,0.6459159]
[1736818571719,3.0,3151.3,3150.5,0.07015625]
[1736818571892,6.24530608,3151.1,3150.5,0.07015625]
[1736818572501,6.24530608,3151.1,3150.2,0.8129]
[1736818572714,6.24530608,3151.1,3150.3,0.07015625]
[1736818572915,3.07180608,3151.1,3150.3,0.70068978]
[1736818573120,6.17331,3151.3,3150.3,0.70068978]
[1736818573323,6.17331,3151.3,3150.3,3.87498978]
[1736818573517,6.17331,3151.3,3150.4,0.46878898]
[1736818573705,3.0,3151.3,3150.5,0.07015625]
[1736818573910,3.82320608,3151.4,3150.5,3.24424625]
[1736818574111,3.82320608,3151.4,3150.6,0.7698]
[1736818574633,3.82320608,3151.4,3150.7,0.07015625]
[1736818575131,3.07180608,3151.1,3150.7,0.07015625]
[1736818575512,3.07180608,3151.1,3150.3,1.40033353]
[1736818575709,3.07180608,3151.1,3150.4,0.07015625]
[1736818575952,3.0,3151.3,3150.4,0.07015625]
[1736818576602,6.17333,3151.3,3150.4,0.07015625]
[1736818576802,7.24294697,3151.3,3150.4,0.07015625]
[1736818577346,3.1734,3151.2,3150.4,0.07015625]
[1736818578635,6.24531608,3151.1,3150.4,0.07015625]
[1736818578823,0.8179,3150.8,3150.4,0.07015625]
[1736818579731,0.8179,3150.8,3150.5,0.07082778]
[1736818579942,0.39916,3150.7,3150.5,0.07082778]
[1736818580101,0.39916,3150.7,3150.1,0.7698]
[1736818580295,0.39916,3150.7,3150.2,0.07082778]
[1736818581502,0.39916,3150.7,3150.1,0.7698]
[1736818581730,3.88970608,3150.8,3150.2,0.07128144]
[1736818583707,3.88970608,3150.8,3150.3,0.07128144]
[1736818583906,3.88970608,3150.8,3150.1,0.7698]
[1736818584106,3.88970608,3150.8,3150.2,0.07128144]
[1736818584838,3.07180608,3150.8,3150.2,0.07128144]
[1736818585841,0.8179,3151.3,3150.2,0.10302654]
[1736818586140,0.8179,3151.3,3150.4,3.17419]
[1736818586302,0.8179,3151.3,3150.5,0.394399]
[1736818586703,0.8179,3151.3,3150.6,0.07128144]
[1736818587561,3.99119,3151.3,3150.6,0.07128144]
[1736818587906,3.99119,3151.3,3150.3,0.7698]
[1736818588106,3.99119,3151.3,3150.4,0.07128144]
[1736818588847,0.8179,3151.3,3150.4,0.07128144]
[1736818589151,0.8179,3151.3,3150.4,3.24539144]
[1736818590217,0.8179,3151.3,3150.4,0.07128144]
[1736818590817,3.99127,3151.3,3150.4,0.07128144]
[1736818591364,3.07180608,3151.4,3150.5,0.7876]
[1736818591516,3.80944406,3151.8,3150.5,0.7876]
[1736818591517,0.7999,3151.9,3150.5,0.7876]
[1736818591721,3.97261,3151.9,3150.7,0.7876]
[1736818591954,3.97261,3151.9,3151.0,0.7876]
[1736818592602,3.97261,3151.9,3151.1,0.07108946]
[1736818592738,3.92404321,3151.8,3151.1,0.07108946]
[1736818594472,3.07180608,3151.7,3151.1,0.07108946]
[1736818594633,3.07180608,3151.4,3151.1,0.07108946]
[1736818594839,0.7999,3151.2,3150.3,0.7876]
[1736818595035,3.07180608,3151.0,3150.3,0.7876]
[1736818595233,3.07180608,3151.0,3150.4,0.07084521]
[1736818595445,3.45897669,3151.0,3150.4,0.07084521]
[1736818595783,3.17371,3150.9,3150.4,0.07084521]
[1736818596083,3.07180608,3150.7,3150.1,0.7876]
[1736818596405,3.07180608,3150.7,3150.2,0.0710284]
[1736818596406,3.17401,3150.6,3150.2,0.0710284]
[1736818596699,0.70457161,3150.5,3149.7,0.7876]
[1736818596995,3.87170608,3150.7,3149.8,0.07104584]
[1736818597787,7.04569608,3150.7,3149.8,0.07104584]
[1736818598198,3.87170608,3150.7,3149.8,0.07104584]